bitfinex-derivatives/quotes_ETHF0:USTF0_20210703
["timestamp","ask_amount","ask_price","bid_price","bid_amount"]
[1625336516635,2.20527,2210.2,2210.1,2.20527]
[1625336517093,2.20527,2210.5,2210.1,2.20527]
[1625336518695,3.20527,2210.8,2210.4,5.66107]
[1625336520596,3.20527,2210.8,2210.7,2.20527]
[1625336522147,3.20527,2210.8,2210.4,5.66107]
[1625336522646,2.20527,2210.5,2210.4,5.66107]
[1625336528317,2.20527,2210.5,2210.4,22.044915]
[1625336528417,1.0,2211.2,2210.4,22.044915]
[1625336528522,15.3217,2211.3,2210.4,22.044915]
[1625336528724,17.52697,2211.3,2211.2,2.20527]
[1625336528824,2.20527,2211.3,2211.2,4.73087]
[1625336530481,14.9234,2212.7,2211.2,4.73087]
[1625336530732,2.20527,2212.3,2212.2,4.82547]
[1625336531280,1.28268341,2213.3,2212.2,4.82547]
[1625336531484,2.0,2217.6,2212.2,4.82547]
[1625336531485,1.0,2213.2,2212.2,4.82547]
[1625336532734,2.20527,2212.7,2212.5,2.20527]
[1625336532835,1.0,2212.6,2212.5,2.20527]
[1625336533191,3.7209,2212.6,2210.8,0.9046]
[1625336533335,3.7209,2212.6,2210.2,6.32408064]
[1625336533336,3.7209,2212.6,2210.9,0.1946437]
[1625336533536,3.7209,2212.6,2210.7,0.19464964]
[1625336533836,3.7209,2212.6,2210.7,16.62082864]
[1625336534085,3.7209,2212.6,2210.7,16.426179]
[1625336534737,2.20527,2211.8,2211.4,2.20527]
[1625336535056,2.20527,2211.8,2211.5,16.336624]
[1625336536714,2.20527,2211.8,2211.7,2.20527]
[1625336544048,3.20527,2211.8,2211.7,2.20527]
[1625336545701,3.20527,2211.8,2210.0,0.9022]
[1625336545804,5.59227,2211.8,2210.0,0.9022]
[1625336546405,5.59227,2211.8,2210.7,16.52421]
[1625336546754,5.59227,2211.8,2210.9,2.20527]
[1625336546856,2.20527,2211.2,2210.9,2.20527]
[1625336546955,3.20527,2211.2,2210.9,2.20527]
[1625336548810,3.20527,2211.2,2211.1,2.20527]
[1625336548909,3.20527,2211.2,2211.1,5.51307]
[1625336549162,2.20527,2211.2,2211.1,5.51307]
[1625336549411,1.0,2211.7,2211.1,5.51307]
[1625336550862,1.0,2211.7,2211.6,2.20527]
[1625336551313,1.0,2211.7,2211.6,5.04117]
[1625336553918,4.41054,2211.8,2211.6,5.04117]
[1625336556800,1.0,2211.7,2211.6,5.04117]
[1625336557007,4.1377,2211.7,2211.6,2.20527]
[1625336557354,4.1377,2211.7,2211.1,2.20527]
[1625336558858,4.41054,2211.2,2211.1,2.20527]
[1625336559011,8.78214,2211.2,2211.1,2.20527]
[1625336560859,7.78214,2211.2,2211.1,2.20527]
[1625336561061,6.57687,2211.2,2211.1,2.20527]
[1625336561159,3.20527,2211.2,2211.1,2.20527]
[1625336561611,2.20527,2211.2,2211.1,2.20527]
[1625336562112,3.20527,2211.2,2211.1,2.20527]
[1625336562960,5.41054,2211.2,2211.1,2.20527]
[1625336569148,4.41054,2211.2,2211.1,2.20527]
[1625336571902,2.29467343,2212.2,2211.1,2.20527]
[1625336572103,2.29475916,2212.2,2211.1,2.20527]
[1625336572855,1.0,2212.2,2211.1,2.20527]
[1625336572953,2.20527,2211.7,2211.6,2.20527]
[1625336573105,3.20527,2211.7,2211.6,2.20527]
[1625336574968,5.41054,2211.7,2211.6,2.20527]
[1625336577774,1.0,2211.7,2211.6,2.20527]
[1625336577878,1.29573073,2212.6,2211.6,3.11967]
[1625336578027,1.0,2212.5,2211.6,5.69127]
[1625336579037,2.20527,2212.0,2211.9,2.20527]
[1625336579187,3.20527,2212.0,2211.9,2.20527]
[1625336582311,1.0,2212.0,2211.9,2.20527]
[1625336583820,1.0,2212.0,2211.6,2.20527]
[1625336585121,2.20527,2211.7,2211.6,2.20527]
[1625336585321,3.20527,2211.7,2211.6,2.20527]
[1625336585521,2.20527,2211.7,2211.6,2.20527]
[1625336591845,3.20527,2212.1,2211.6,2.20527]
[1625336591946,3.20527,2212.1,2211.6,4.56707]
[1625336593099,3.20527,2212.1,2212.0,2.20527]
[1625336595418,2.20527,2212.1,2212.0,2.20527]
[1625336600533,2.20527,2212.1,2212.0,18.720103]
[1625336601335,2.20527,2212.4,2212.0,18.720103]
[1625336601432,1.0,2212.9,2212.0,18.720103]
[1625336602233,2.29885687,2213.3,2212.0,18.720103]
[1625336602584,1.0,2213.3,2212.0,18.720103]
[1625336603238,1.0,2213.3,2213.2,5.72747]
[1625336607999,1.0,2213.3,2213.2,3.5222]
[1625336608653,1.0,2213.3,2212.5,1.15]
[1625336609165,4.1936,2213.3,2212.5,1.15]
[1625336609267,2.20527,2212.9,2212.8,2.20527]
[1625336609363,3.20527,2212.9,2212.8,2.20527]
[1625336611280,5.41054,2212.9,2212.5,1.15]
[1625336611481,5.41054,2212.9,2211.9,2.20527]
[1625336612683,6.70522329,2212.9,2211.9,2.20527]
[1625336613084,1.29440257,2212.7,2211.9,2.20527]
[1625336613188,1.0,2212.6,2211.9,2.20527]
[1625336613284,8.05154,2212.0,2211.9,2.20527]
[1625336613435,9.05154,2212.0,2211.5,2.20527]
[1625336613887,9.05154,2212.0,2210.9,1.33165281]
[1625336614640,9.05154,2212.0,2210.6,1.33221767]
[1625336615190,9.05154,2212.0,2210.5,1.33221131]
[1625336615339,2.20527,2211.1,2210.9,2.20527]
[1625336615441,3.20527,2211.1,2210.9,2.20527]
[1625336615693,2.20527,2211.1,2210.9,2.20527]
[1625336616644,2.20527,2211.1,2210.9,5.49197]
[1625336617144,2.20527,2211.1,2211.0,16.491516]
[1625336618150,2.20527,2211.1,2211.0,17.8241199]
[1625336618398,2.20527,2211.1,2211.0,18.01865089]
[1625336618552,2.20527,2211.1,2211.0,18.55162159]
[1625336619716,1.0,2211.8,2211.0,18.55162159]
[1625336619966,16.35282037,2212.7,2211.1,0.19456075]
[1625336620070,1.0,2212.6,2211.3,1.3325741]
[1625336620216,1.0,2212.6,2211.3,4.9406741]
[1625336620417,1.0,2212.6,2211.4,16.350157]
[1625336621271,2.20527,2212.0,2211.8,2.20527]
[1625336621373,1.0,2211.9,2211.8,2.20527]
[1625336621821,2.20527,2212.0,2211.8,4.98407]
[1625336623328,4.41054,2212.0,2211.8,4.98407]
[1625336624984,5.41054,2212.0,2211.8,4.98407]
[1625336634621,8.38584,2212.0,2211.8,2.20527]
[1625336635319,8.38584,2212.0,2210.9,1.33243777]
[1625336635472,5.70917,2211.5,2211.1,2.20527]
[1625336635570,1.0,2211.4,2211.1,2.20527]
[1625336635670,5.70917,2211.5,2211.1,2.20527]
[1625336635972,6.70917,2211.5,2211.1,2.20527]
[1625336636873,5.70917,2211.5,2211.1,2.20527]
[1625336637423,5.70917,2211.5,2211.4,2.20527]
[1625336637724,3.5039,2211.5,2211.4,2.20527]
[1625336638629,1.0,2211.8,2211.4,2.20527]
[1625336639381,3.20527,2211.8,2211.7,2.20527]
[1625336639997,3.20527,2211.8,2211.4,2.20527]
[1625336640095,5.72917,2211.8,2211.4,2.20527]
[1625336641400,7.93444,2211.8,2211.4,2.20527]
[1625336643434,2.20527,2211.5,2211.4,2.20527]
[1625336643526,3.20527,2211.5,2211.4,2.20527]
[1625336644285,3.20527,2211.5,2210.7,1.33288473]
[1625336644528,5.0,2211.4,2210.7,1.33288473]
[1625336644632,3.438,2211.3,2210.5,1.332961]
[1625336644929,3.438,2211.3,2210.1,3.46569859]
[1625336645027,3.438,2211.3,2210.0,1.33323601]
[1625336645179,3.438,2211.3,2210.1,0.19504454]
[1625336645328,3.438,2211.3,2210.0,1.33323601]
[1625336645431,2.20527,2210.3,2210.2,2.20527]
[1625336645534,3.20527,2210.3,2210.2,2.20527]
[1625336646134,3.20527,2210.3,2210.2,2.40030478]
[1625336646332,3.20527,2210.3,2210.2,2.20527]
[1625336646534,2.20527,2210.3,2210.2,2.20527]
[1625336646634,2.20527,2210.3,2210.2,2.4001757]
[1625336646985,2.20527,2210.3,2210.2,3.73303018]
[1625336647288,2.20527,2210.3,2210.2,4.26611691]
[1625336647688,2.20527,2210.3,2210.2,3.73299318]
[1625336647788,1.0,2210.5,2210.2,3.73299318]
[1625336648038,1.0,2210.5,2210.3,0.19486629]
[1625336648143,1.29181723,2212.0,2210.3,0.19486629]
[1625336648337,1.29208847,2212.2,2210.5,1.3326308]
[1625336648686,1.0,2212.1,2210.5,1.3326308]
[1625336648787,1.0,2212.1,2210.6,0.19478845]
[1625336649489,2.20527,2211.0,2210.9,2.20527]
[1625336649587,3.20527,2211.0,2210.9,4.71107]
[1625336649937,1.29208847,2212.2,2210.9,4.71107]
[1625336650040,1.0,2212.1,2210.9,4.71107]
[1625336651545,2.20527,2211.4,2211.2,2.20527]
[1625336651646,3.20527,2211.4,2211.2,2.20527]
[1625336655204,2.20527,2211.4,2211.2,2.20527]
[1625336655604,1.0,2211.8,2211.2,5.86037]
[1625336657573,1.0,2211.8,2211.7,2.20527]
[1625336658780,1.0,2211.8,2211.2,5.86037]
[1625336659584,2.20527,2211.3,2211.2,5.86037]
[1625336659685,3.20527,2211.3,2211.2,5.86037]
[1625336662040,3.20527,2211.3,2211.2,3.6551]
[1625336662142,3.20527,2211.3,2211.1,2.20527]
[1625336672124,2.20527,2211.3,2211.1,2.20527]
[1625336672425,2.20527,2211.4,2211.1,2.20527]
[1625336672576,2.20527,2211.4,2211.1,4.77857]
[1625336673126,2.20527,2211.4,2211.1,6.11165047]
[1625336673681,2.20527,2211.4,2211.3,2.20527]
[1625336676186,2.20527,2211.4,2211.3,2.40034585]
[1625336677187,2.20527,2211.4,2211.3,2.20527]
[1625336677838,3.20527,2211.4,2211.3,2.20527]
[1625336678089,3.20527,2211.4,2211.1,1.33298856]
[1625336678641,3.20527,2211.4,2210.9,1.33315954]
[1625336679088,3.20527,2211.4,2210.8,1.33321128]
[1625336679340,3.20527,2211.4,2210.9,0.19512406]
[1625336679691,2.20527,2211.0,2210.9,2.40039406]
[1625336679790,3.20527,2211.0,2210.9,2.40039406]
[1625336679891,3.20527,2211.0,2210.9,2.20527]
[1625336688882,3.20527,2211.0,2210.3,1.33314069]
[1625336688983,5.62587,2211.0,2210.3,1.33314069]
[1625336689184,5.62587,2211.0,2210.4,0.19525676]
[1625336689783,4.41054,2210.5,2210.4,2.40052676]
[1625336689883,5.41054,2210.5,2210.4,2.40052676]
[1625336690643,5.41054,2210.5,2210.4,2.20527]
[1625336690840,5.41054,2210.5,2210.4,2.4005319]
[1625336691642,4.41054,2210.5,2210.4,2.4005319]
[1625336692194,1.0,2211.0,2210.4,2.4005319]
[1625336692295,1.0,2211.0,2210.4,5.5534319]
[1625336692393,1.0,2211.0,2210.5,0.19526389]
[1625336692494,1.29146708,2211.9,2210.5,0.19526389]
[1625336692595,1.29159097,2212.0,2210.5,0.19526389]
[1625336692697,1.29159097,2212.0,2210.5,16.49344189]
[1625336692846,16.15664247,2212.1,2210.5,17.82634976]
[1625336692995,17.15664247,2212.1,2210.6,0.19526058]
[1625336693796,2.20527,2211.0,2210.9,2.20527]
[1625336695751,4.41054,2211.0,2210.9,2.20527]
[1625336700921,4.41054,2211.0,2210.9,5.97407]
[1625336701830,4.41054,2211.0,2210.9,7.30901924]
[1625336704035,4.41054,2211.0,2210.9,5.97407]
[1625336705741,5.41054,2211.0,2210.9,5.97407]
[1625336707299,4.41054,2211.0,2210.9,5.97407]
[1625336709154,4.41054,2211.0,2210.9,6.16949325]
[1625336709607,4.41054,2211.0,2210.9,7.50437567]
[1625336709755,4.41054,2211.0,2210.9,7.30895242]
[1625336710557,4.41054,2211.0,2210.9,7.50436907]
[1625336710906,4.41054,2211.0,2210.9,8.038284]
[1625336711707,4.41054,2211.0,2210.9,8.83919597]
[1625336712459,4.41054,2211.0,2210.9,6.16948665]
[1625336712963,4.41054,2211.0,2210.9,8.83935326]
[1625336713066,1.0,2211.5,2210.9,8.83935326]
[1625336713264,1.0,2211.5,2211.0,0.19538704]
[1625336713724,1.0,2211.5,2210.9,7.309109]
[1625336713828,4.41054,2211.0,2210.9,7.309109]
[1625336713977,5.41054,2211.0,2210.9,7.309109]
[1625336714478,5.41054,2211.0,2210.9,5.97407]
[1625336715531,4.41054,2211.0,2210.9,5.97407]
[1625336716032,5.41054,2211.0,2210.9,5.97407]
[1625336717487,4.41054,2211.0,2210.9,5.97407]
[1625336717687,4.41054,2211.0,2210.9,7.30955198]
[1625336717887,5.41054,2211.0,2210.9,7.30955198]
[1625336718438,4.41054,2211.0,2210.9,7.30955198]
[1625336720143,4.41054,2211.0,2210.9,7.50500896]
[1625336720393,4.41054,2211.0,2210.9,7.30955198]
[1625336720748,4.41054,2211.0,2210.9,7.8443019]
[1625336720849,4.41054,2211.0,2210.9,8.03975736]
[1625336721597,1.0,2211.6,2210.9,8.03975736]
[1625336721698,1.0,2211.6,2211.0,0.19543729]
[1625336721950,1.29825242,2212.0,2211.9,2.20527]
[1625336722052,1.29825242,2212.0,2211.9,5.54777]
[1625336722252,2.20527,2212.2,2211.9,5.54777]
[1625336722999,1.0,2212.1,2211.9,5.54777]
[1625336723302,2.20527,2212.2,2211.9,5.54777]
[1625336723651,1.0,2212.1,2211.9,5.54777]
[1625336723751,2.20527,2212.2,2211.9,5.54777]
[1625336723903,4.41054,2212.2,2211.9,5.54777]
[1625336724804,1.0,2212.1,2211.9,5.54777]
[1625336745667,2.29844451,2212.1,2211.9,5.54777]
[1625336745914,1.0,2212.1,2211.9,5.54777]
[1625336754430,1.0,2212.1,2211.8,2.20527]
[1625336754532,4.2409,2212.1,2211.1,1.33485307]
[1625336755446,6.05466255,2212.1,2211.1,1.33485307]
[1625336755529,1.29554468,2212.0,2210.9,1.33504776]
[1625336755628,1.0,2211.9,2210.9,1.33504776]
[1625336756131,2.20527,2211.1,2211.0,2.20527]
[1625336756230,2.20527,2211.1,2211.0,5.65387]
[1625336757499,2.20527,2211.1,2211.0,6.98888251]
[1625336758099,4.41054,2211.1,2211.0,6.98888251]
[1625336759205,1.0,2211.9,2211.0,6.98888251]
[1625336760159,3.20527,2211.9,2211.8,2.20527]
[1625336760260,3.20527,2211.9,2211.5,2.20527]
[1625336761518,3.20527,2211.9,2210.8,1.33506237]
[1625336762219,2.20527,2211.1,2211.0,2.20527]
[1625336764123,4.41054,2211.1,2211.0,2.20527]
[1625336764222,5.41054,2211.1,2211.0,2.20527]
[1625336764774,3.20527,2211.1,2211.0,2.20527]
[1625336764876,1.29662327,2211.9,2211.0,2.20527]
[1625336764976,1.0,2211.6,2211.0,5.52487]
[1625336765324,1.0,2211.6,2211.1,1.33492489]
[1625336766025,2.29728239,2212.2,2211.2,0.19513818]
[1625336766224,2.20527,2211.9,2211.8,2.20527]
[1625336766374,2.20527,2211.9,2211.8,5.02637]
[1625336768228,4.41054,2211.9,2211.8,5.02637]
[1625336773702,8.64994,2211.9,2211.5,2.20527]
[1625336774154,8.64994,2211.9,2211.2,1.33471305]
[1625336774252,2.20527,2211.6,2211.2,1.33471305]
[1625336774352,2.20527,2211.6,2211.0,4.87469611]
[1625336774353,1.0,2211.5,2211.0,3.54021712]
[1625336774753,1.0,2211.5,2211.0,2.20527]
[1625336776205,4.41054,2211.1,2211.0,2.20527]
[1625336776555,5.41054,2211.1,2211.0,2.20527]
[1625336783219,1.0,2211.1,2211.0,2.20527]
[1625336783321,1.0,2211.9,2211.0,2.20527]
[1625336783718,1.0,2211.9,2211.0,4.98107]
[1625336784273,2.20527,2211.1,2211.0,7.18634]
[1625336785274,2.20527,2211.1,2211.0,9.0554564]
[1625336785774,2.20527,2211.4,2211.0,9.0554564]
[1625336785875,2.20527,2211.4,2211.0,9.25059185]
[1625336786126,2.20527,2211.4,2211.0,9.0554564]
[1625336786224,2.20527,2211.4,2211.1,1.33509123]
[1625336786325,2.20527,2211.4,2211.3,2.20527]
[1625336787329,3.20527,2211.4,2211.3,2.20527]
[1625336787427,2.20527,2211.4,2211.3,2.20527]
[1625336796158,2.20527,2211.7,2211.3,2.20527]
[1625336796358,2.20527,2211.7,2211.6,2.20527]
[1625336798717,3.20527,2211.7,2211.6,2.20527]
[1625336799770,2.20527,2211.7,2211.6,2.20527]
[1625336802976,2.20527,2211.7,2211.6,4.66467]
[1625336809457,3.11837,2211.7,2211.6,4.66467]
[1625336809557,4.11837,2211.7,2211.6,4.66467]
[1625336809759,3.20527,2211.7,2211.6,4.66467]
[1625336810009,3.20527,2211.7,2211.6,2.20527]
[1625336810964,3.20527,2211.7,2210.8,1.33572301]
[1625336811315,4.50038118,2211.7,2210.7,1.33578771]
[1625336811864,3.75262549,2211.6,2210.6,1.33583788]
[1625336811965,1.0,2211.5,2210.6,1.33583788]
[1625336812316,1.0,2211.5,2210.5,1.33563156]
[1625336812466,2.20527,2211.1,2211.0,2.20527]
[1625336812616,3.20527,2211.1,2211.0,2.20527]
[1625336813569,6.84277,2211.1,2211.0,2.20527]
[1625336814472,9.04804,2211.1,2211.0,2.20527]
[1625336818782,9.04804,2211.1,2210.7,2.20527]
[1625336820605,2.20527,2210.8,2210.4,3.54065381]
[1625336820706,1.0,2210.7,2210.4,3.54065381]
[1625336821159,1.0,2210.7,2210.5,1.33531527]
[1625336822161,2.20527,2210.8,2210.5,1.33531527]
[1625336822563,1.0,2211.2,2210.7,2.20527]
[1625336823013,2.20527,2211.5,2210.7,2.20527]
[1625336823114,2.20527,2211.5,2210.7,3.54059124]
[1625336823316,3.20527,2211.5,2210.7,3.54059124]
[1625336823766,3.20527,2211.5,2210.8,1.33528785]
[1625336823916,3.20527,2211.5,2210.8,4.37838785]
[1625336824670,3.20527,2211.5,2211.2,2.20527]
[1625336826578,2.20527,2211.3,2211.2,2.20527]
[1625336826677,3.20527,2211.3,2211.2,2.20527]
[1625336830231,2.20527,2211.3,2211.2,2.20527]
[1625336830333,3.20527,2211.3,2211.2,2.20527]
[1625336832281,2.20527,2211.3,2211.2,2.20527]
[1625336832485,3.20527,2211.3,2211.2,2.20527]
[1625336833037,1.0,2211.3,2211.2,2.20527]
[1625336833185,2.20527,2211.5,2211.2,2.20527]
[1625336833786,3.20527,2211.5,2211.2,2.20527]
[1625336834691,2.20527,2211.3,2211.2,2.20527]
[1625336834938,3.20527,2211.3,2211.2,2.20527]
[1625336849841,1.0,2211.3,2210.7,1.3358771]
[1625336850744,3.20527,2211.3,2211.2,2.20527]
[1625336852797,5.41054,2211.3,2211.2,2.20527]
[1625336853347,5.41054,2211.3,2211.0,2.20527]
[1625336860028,4.41054,2211.3,2211.0,2.20527]
[1625336860888,2.20527,2211.3,2211.0,2.20527]
[1625336861033,2.29584644,2211.7,2211.0,5.67827]
[1625336861283,1.0,2211.7,2211.0,5.67827]
[1625336862886,2.20527,2211.5,2211.4,2.20527]
[1625336864892,4.41054,2211.5,2211.4,2.20527]
[1625336871235,5.41054,2211.5,2211.4,2.20527]
[1625336873993,7.91764,2211.5,2211.0,1.33626574]
[1625336874944,2.20527,2211.1,2211.0,1.33626574]
[1625336875046,2.20527,2211.1,2210.0,2.20527]
[1625336875047,4.49855656,2211.1,2210.2,1.33665525]
[1625336875548,1.2937871,2211.0,2210.1,1.33669402]
[1625336875650,1.0,2210.9,2210.1,1.33669402]
[1625336877001,4.41054,2210.2,2210.1,1.33669402]
[1625336877854,4.41054,2210.2,2210.1,1.53220401]
[1625336878104,4.41054,2210.2,2210.1,1.33669402]
[1625336878207,4.41054,2210.2,2210.1,1.87062177]
[1625336878654,4.41054,2210.2,2210.0,4.07548565]
[1625336879605,4.41054,2210.2,2210.1,0.19543789]
[1625336880008,4.41054,2210.2,2210.0,4.07548565]
[1625336880107,4.41054,2210.2,2210.1,1.87021518]
[1625336880207,4.41054,2210.2,2210.1,2.06565998]
[1625336880327,1.0,2210.9,2210.1,2.06565998]
[1625336880477,1.0,2210.9,2210.1,1.87021518]
[1625336880730,1.0,2210.8,2210.1,1.87021518]
[1625336880878,1.0,2210.8,2210.2,0.19543857]
[1625336880979,3.20527,2210.8,2210.6,2.20527]
[1625336881078,2.20527,2210.8,2210.6,5.93647]
[1625336882232,2.20527,2210.8,2210.6,7.27198601]
[1625336883032,2.20527,2210.8,2210.6,9.47725601]
[1625336883133,2.20527,2210.8,2210.7,1.33540663]
[1625336884385,2.20527,2210.8,2210.6,9.47724143]
[1625336885535,2.20527,2210.8,2210.7,1.33548982]
[1625336889646,2.20527,2210.8,2210.6,10.01142575]
[1625336889997,2.20527,2210.8,2210.7,1.86998817]
[1625336890148,2.20527,2210.8,2210.7,2.06535089]
[1625336893204,7e-05,2210.8,2210.7,2.06535089]
[1625336893306,1.0,2211.7,2210.7,2.06535089]
[1625336893405,1.0,2211.7,2211.2,1.15]
[1625336893510,1.0,2211.7,2211.2,4.8491]
[1625336894109,1.29684166,2212.0,2211.2,4.8491]
[1625336894209,2.29684166,2212.0,2211.2,4.8491]
[1625336894312,1.0,2212.0,2211.3,1.33593435]
[1625336894511,1.0,2212.0,2211.3,17.80182835]
[1625336894814,1.0,2212.0,2211.5,1.33583974]
[1625336895013,1.0,2212.0,2211.8,1.15]
[1625336895113,1.0,2212.0,2211.8,4.0992]
[1625336895214,1.0,2212.0,2211.9,4.41054]
[1625336899384,1.0,2212.1,2211.9,4.41054]
[1625336899685,2.20527,2212.2,2211.9,4.41054]
[1625336900634,1.0,2212.1,2211.9,4.41054]
[1625336900754,2.20527,2212.2,2211.9,4.41054]
[1625336901537,3.20527,2212.2,2211.9,4.41054]
[1625336905240,3.20527,2212.2,2211.9,2.20527]
[1625336905343,3.20527,2212.2,2211.5,1.33461038]
[1625336905440,5.48227,2212.2,2211.5,1.33461038]
[1625336905644,5.48227,2212.2,2211.1,1.33447327]
[1625336906046,6.77803115,2212.2,2211.0,1.33455334]
[1625336907000,6.77803115,2212.2,2210.8,1.33470416]
[1625336907001,1.29498983,2212.0,2210.8,1.33470416]
[1625336907104,1.0,2211.9,2210.8,1.33470416]
[1625336907252,2.20527,2211.6,2211.5,2.20527]
[1625336907401,3.20527,2211.6,2211.5,2.20527]
[1625336909307,5.41054,2211.6,2211.5,2.20527]
[1625336909407,8.52014,2211.6,2211.5,2.20527]
[1625336912391,8.52014,2211.6,2210.6,1.33497077]
[1625336912939,9.8128743,2211.6,2210.4,1.33505103]
[1625336913391,2.20527,2211.1,2211.0,2.20527]
[1625336913541,3.20527,2211.1,2211.0,2.20527]
[1625336915349,5.41054,2211.1,2211.0,2.20527]
[1625336916201,4.41054,2211.1,2211.0,2.20527]
[1625336916350,5.41054,2211.1,2211.0,2.20527]
[1625336916651,5.41054,2211.1,2210.5,1.33493042]
[1625336917102,5.41054,2211.1,2210.4,1.33490944]
[1625336917404,2.20527,2210.6,2210.4,3.54017944]
[1625336917503,2.20527,2210.6,2210.5,1.3348861]
[1625336923334,4.41054,2210.6,2210.5,1.3348861]
[1625336923534,4.41054,2210.6,2210.5,1.52980328]
[1625336923635,4.41054,2210.6,2210.5,2.06353962]
[1625336923740,1.0,2211.6,2210.5,2.06353962]
[1625336923935,1.0,2211.6,2210.6,0.1949031]
[1625336924041,1.0,2211.6,2210.7,1.33481143]
[1625336924235,1.0,2211.6,2210.7,17.73402743]
[1625336924390,1.0,2211.6,2210.8,0.19486785]
[1625336924588,1.0,2211.6,2210.9,1.33460869]
[1625336924739,1.0,2211.6,2211.0,1.15]
[1625336924890,1.0,2211.6,2211.0,2.48456537]
[1625336925441,3.20527,2211.6,2211.5,4.52737]
[1625336926290,2.20527,2211.6,2211.5,4.52737]
[1625336926596,1.0,2211.8,2211.5,4.52737]
[1625336926692,1.2940716,2212.2,2211.5,4.52737]
[1625336926995,15.6149,2212.4,2211.5,4.52737]
[1625336926996,16.90925741,2212.4,2211.5,4.52737]
[1625336927246,15.6149,2212.4,2211.5,4.52737]
[1625336927394,2.20527,2211.6,2211.5,4.52737]
[1625336928299,3.20527,2211.6,2211.5,4.52737]
[1625336928648,3.20527,2211.6,2211.5,2.3221]
[1625336930151,2.20527,2211.6,2211.5,2.3221]
[1625336930907,2.20527,2211.6,2211.3,1.33412635]
[1625336931607,2.20527,2211.6,2211.2,3.53941789]
[1625336932157,2.20527,2211.6,2211.2,2.20527]
[1625336933412,2.20527,2211.3,2211.2,2.20527]
[1625336937822,2.20527,2211.3,2211.2,3.5392116]
[1625336938319,1.0,2212.1,2211.2,3.5392116]
[1625336938830,1.0,2212.0,2211.2,3.5392116]
[1625336938976,1.0,2212.0,2211.2,2.20527]
[1625336939436,2.20527,2211.3,2211.2,2.20527]
[1625336941970,2.20527,2211.3,2211.2,3.53911114]
[1625336942371,2.20527,2211.3,2211.2,2.20527]
[1625336945224,3.20527,2211.3,2211.2,2.20527]
[1625336945976,6.89477,2211.3,2211.2,2.20527]
[1625336946177,6.89477,2211.3,2211.0,3.35527]
[1625336946275,6.89477,2211.3,2210.8,1.3339733]
[1625336946475,6.89477,2211.3,2210.6,1.33405383]
[1625336946927,6.89477,2211.3,2210.4,1.33415717]
[1625336947227,6.89477,2211.3,2210.3,1.33419841]
[1625336947526,4.41054,2210.4,2210.3,3.53946841]
[1625336947877,4.41054,2210.4,2210.3,3.7345158]
[1625336947978,4.41054,2210.4,2210.3,4.26816298]
[1625336950249,4.41054,2210.4,2210.3,2.40031739]
[1625336950699,4.41054,2210.4,2210.3,4.26802172]
[1625336952804,4.41054,2210.4,2210.3,7.14942172]
[1625336953458,4.41054,2210.4,2210.3,23.49206172]
[1625336953860,4.41054,2210.4,2210.3,21.62435739]
[1625336954210,4.41054,2210.4,2210.3,23.49207247]
[1625336954712,4.41054,2210.4,2210.3,24.29232118]
[1625336955010,1.29154478,2212.0,2210.3,24.29232118]
[1625336955111,1.0,2211.5,2210.3,24.29232118]
[1625336955213,1.0,2211.5,2210.8,1.15]
[1625336955385,1.0,2211.5,2210.8,4.1003]
[1625336955534,2.20527,2210.9,2210.8,6.30557]
[1625336962007,2.20527,2211.2,2210.8,6.30557]
[1625336962517,2.20527,2211.2,2210.9,16.60901374]
[1625336962712,2.20527,2211.2,2210.9,17.74768233]
[1625336963559,2.20527,2211.2,2211.1,2.20527]
[1625336963908,2.20527,2211.2,2211.1,18.622733]
[1625336964960,2.20527,2211.2,2211.1,2.20527]
[1625336965060,3.20527,2211.2,2211.1,2.20527]
[1625336965668,3.20527,2211.2,2210.8,3.35527]
[1625336966416,3.20527,2211.2,2210.8,1.15]
[1625336967626,2.20527,2210.9,2210.8,1.15]
[1625336969682,2.20527,2210.9,2210.8,2.48467788]
[1625336972952,3.20527,2210.9,2210.8,2.48467788]
[1625336973203,2.20527,2210.9,2210.8,1.15]
[1625336973402,2.20527,2210.9,2210.8,1.34523452]
[1625336973554,2.20527,2210.9,2210.8,3.21394788]
[1625336973652,1.0,2211.4,2210.8,3.21394788]
[1625336973751,1.0,2211.4,2210.8,5.67794788]
[1625336973855,1.0,2211.4,2210.9,0.1952372]
[1625336974057,1.0,2211.4,2211.0,1.33471778]
[1625336974156,1.0,2211.4,2211.0,17.75325878]
[1625336974307,1.0,2211.8,2211.0,17.75325878]
[1625336974406,1.0,2211.8,2211.4,1.15]
[1625336974557,1.0,2211.8,2211.4,3.9776]
[1625336975662,2.20527,2211.6,2211.5,2.20527]
[1625336976363,3.20527,2211.6,2211.5,2.20527]
[1625336977168,2.20527,2211.6,2211.5,2.20527]
[1625336977365,3.20527,2211.6,2211.5,2.20527]
[1625336977766,5.41054,2211.6,2211.5,2.20527]
[1625336978520,5.41054,2211.6,2211.4,1.15]
[1625336984883,5.41054,2211.6,2211.1,2.20527]
[1625336985780,2.20527,2211.3,2211.1,2.20527]
[1625336985880,3.20527,2211.3,2211.1,2.20527]
[1625336989755,2.20527,2211.2,2211.1,2.20527]
[1625336989857,3.20527,2211.2,2211.1,2.20527]
[1625336990971,5.51957,2211.2,2211.1,2.20527]
[1625336993826,4.51957,2211.2,2211.1,2.20527]
[1625336993977,5.51957,2211.2,2211.1,2.20527]
[1625336995327,5.51957,2211.2,2211.0,1.33588908]
[1625336996730,5.51957,2211.2,2211.1,1.33592456]
[1625336997183,5.51957,2211.2,2211.0,1.33593034]
[1625336997484,4.51957,2211.2,2211.0,1.33593034]